Cogmind - Beta 17.1 @@@ ROGUE MODE // 2026.09.02 @ 13:36:15 Player: Godsword Result: Destroyed by D-53 Grenadier with Mini Grenade Launcher Performance ------------- Evolutions (0) 0 Regions Visited (2) 400 Robots Destroyed (0) 0 Value Destroyed (0) 0 Prototype IDs (0) 0 Alien Tech Used (0) 0 Bonus (60) 60 TOTAL SCORE: 460 Bonus ------- Follower Combat Kills 60 Cogmind --------- Core Integrity 0/250 Matter 300/300 Energy 100/100 System Corruption 0% Temperature Cool (0) Movement Core (50) Location -10/Mines Parts ------- > --- POWER (1) -------- (None) > --- PROPULSION (2) --- (None) > --- UTILITY (2) ------ Improved Heat Sink > --- WEAPON (2) ------- Katana > --- INVENTORY (5) ---- Light Ion Engine Stasis Trap (100%) Stasis Trap (100%) Peak State ------------ > --- POWER ------------ Light Nuclear Core > --- PROPULSION ------- Flight Unit Flight Unit > --- UTILITY ---------- Improved Heat Sink Compact Matter Pod > --- WEAPON ----------- Katana > --- INVENTORY -------- Light Ion Engine Stasis Trap Stasis Trap Stasis Trap Stasis Trap [Rating: 14] Favorites ----------- Power Light Ion Engine Engine Light Ion Engine Power Core Light Nuclear Core Propulsion Flight Unit Flight Unit Flight Unit Utility Improved Heat Sink Device Improved Heat Sink Storage Compact Matter Pod Processor Machine Analyzer Weapon Katana Slashing Weapon Katana Build | -11 -10 -10 ------- Run | Yrd Mat Min Slots Evolved . | . . . Power . | . . . Propulsion . | . . . Utility . | . . . Weapon . | . . . Parts Attached 10 | . 1 9 Power 2 | . . 2 Engine 1 | . . 1 Core 1 | . . 1 Reactor . | . . . Propulsion 4 | . 1 3 Treads . | . . . Leg . | . . . Wheel . | . . . Hover . | . . . Flight 4 | . 1 3 Utility 3 | . . 3 Device 1 | . . 1 Storage 1 | . . 1 Processor 1 | . . 1 Hackware . | . . . Protection . | . . . Artifact . | . . . Weapon 1 | . . 1 Energy Gun . | . . . Energy Cannon . | . . . Ballistic Gun . | . . . Ballistic Cannon . | . . . Launcher . | . . . Special Weapon . | . . . Impact Weapon . | . . . Slashing Weapon 1 | . . 1 Piercing Weapon . | . . . Special Melee Weapon . | . . . Unidentified Prototypes . | . . . Parts Lost 6 | . 1 5 Power 1 | . . 1 Propulsion 4 | . 1 3 Utility 1 | . . 1 Weapon . | . . . Highest Loss Streak 4 | . 1 4 To Critical Strikes . | . . . Average Backups 1 | . 1 1 Power . | . 1 . Propulsion . | . . . Utility . | . . . Weapon . | . . . Tool/Special . | . . . Unused Backups . | . . . Power . | . . . Propulsion . | . . . Utility . | . . . Weapon . | . . . Tool/Special . | . . . Average Slot Usage (%) 41 | . 7 52 Engine 5 | . . 6 Core 4 | . . 5 Flight 21 | . 7 25 Device 3 | . . 4 Storage 1 | . . 1 Processor 2 | . . 3 Slashing Weapon 3 | . . 4 Peak Build Rating 14 | . 1 14 Average Rating 5 | . . 6 On Entrance . | . . . Avg Prop Armor Cover (%) . | . . . Naked Turns 44 | . 25 19 Heaviest Build 8 | . . 8 Greatest Support 8 | 3 4 8 Greatest Overweight (x) 2 | . . 2 Average Overweight (x) . | . . . Largest Inventory Capacity 5 | 5 5 5 Average Capacity 5 | 5 5 5 Most Carried 5 | 1 1 5 Average Carried 2 | . 1 2 Final Capacity 5 | 5 5 5 Final Carried 3 | 1 1 3 Class Distribution -------------------- 74% | Mutant 25% | Scavenger-Mutant Dominant Class ---------------- Mutant | -10/Materials Mutant | -10/Mines Resources | -11 -10 -10 ----------- Run | Yrd Mat Min Matter Collected 274 | 200 . 74 Remotely . | . . . Salvage Created . | . . . Parts . | . . . Haulers Intercepted . | . . . Recyclers Shooed . | . . . Parts Field Recycled . | . . . Retrieved Matter . | . . . Parts Self-Destructed . | . . . Prevented . | . . . Parts Restored . | . . . Kills | -11 -10 -10 ------- Run | Yrd Mat Min Combat Hostiles Destroyed . | . . . Classes Destroyed . | . . . Best Kill Streak . | . . . Combat Bots Only . | . . . Max Kills in Single Turn . | . . . Gunslinging . | . . . Exploded . | . . . Melee . | . . . Uniques/NPCs Destroyed . | . . . Combat | -11 -10 -10 -------- Run | Yrd Mat Min Hostile Shots Fired 37 | . 11 26 Missed 15 | . 4 11 Hits 22 | . 7 15 Projectile 22 | . 7 15 AOE 6 | . . 6 Damage Taken 428 | . 83 345 Core 252 | . 73 179 Absorbed by Shields . | . . . Core Remaining (%) 100 | 100 . . Volleys Fired . | . . . Largest . | . . . Hottest . | . . . Shots Fired . | . . . Gun . | . . . Cannon . | . . . Launcher . | . . . Special . | . . . Kinetic . | . . . Thermal . | . . . Explosive . | . . . Electromagnetic . | . . . Robot Hit Streak . | . . . Robot Miss Streak . | . . . Penetration Max . | . . . Secondary Targets . | . . . Shots Hit Robots . | . . . Core Hits . | . . . Critical Kills . | . . . Critical Parts Destroyed . | . . . Critical Strikes . | . . . Melee Attacks . | . . . Impact . | . . . Slashing . | . . . Piercing . | . . . Sneak Attacks . | . . . Combat Hostiles . | . . . Follow-up Attacks . | . . . Damage Inflicted . | . . . Guns . | . . . Cannons . | . . . Explosions . | . . . Melee . | . . . Ramming . | . . . Kinetic . | . . . Thermal . | . . . Explosive . | . . . Electromagnetic . | . . . Impact . | . . . Slashing . | . . . Piercing . | . . . Highest Corruption . | . . . Average Corruption . | . . . Corruption Purged . | . . . Corruption Blocked . | . . . Overload Shots . | . . . Overflow Damage . | . . . Projectiles . | . . . Explosions . | . . . Melee . | . . . Knockbacks . | . . . Impact . | . . . Kinetic . | . . . Secondary . | . . . Self-Inflicted Damage . | . . . Shots . | . . . Rammed . | . . . Targets Rammed . | . . . Kicked . | . . . Crushed . | . . . Highest Temperature . | . . . Average Temperature . | . . . Received Heat Transfer 54 | . 45 9 Siege Activations . | . . . Martial Activations . | . . . Shielding Activations . | . . . Robots Disrupted . | . . . Combat Hostiles . | . . . Robots Corrupted . | . . . Combat Hostiles . | . . . Parts Fried . | . . . Impact Corruptions . | . . . Robots Melted . | . . . Combat Hostiles . | . . . Parts Melted . | . . . Heat Transferred . | . . . Parts Sabotaged . | . . . Parts Stolen . | . . . Parts Stripped . | . . . Power Chain Reactions . | . . . Alert | -11 -10 -10 ------- Run | Yrd Mat Min Maximum Alert Level . | . . . Low Security (%) 100 | 100 100 100 Level 1 . | . . . Level 2 . | . . . Level 3 . | . . . Level 4 . | . . . Level 5 . | . . . High Security . | . . . Max Security . | . . . Peak Influence 55 | . . 55 Initial . | . . . Average 8 | . . 11 Influence Increases 55 | . . 55 Destroy 0b10 Robot/C 40 | . . 40 Destroy Leader 10 | . . 10 Allied During Kill 5 | . . 5 Influence Decreases 55 | . . 55 Time Decay 50 | . . 50 Lost Ally 5 | . . 5 Squads Dispatched 2 | . 1 1 Investigation 1 | . . 1 Extermination . | . . . Reinforcement 1 | . 1 . Assault . | . . . Garrison . | . . . Intercept . | . . . Searches Triggered . | . . . Construction Impeded . | . . . Haulers Reinforced . | . . . Active Scanning Responses . | . . . Cargo Convoy Interrupts . | . . . Stealth | -11 -10 -10 --------- Run | Yrd Mat Min Distress Signals 1 | . 1 . Communications Jammed . | . . . Distress Signals . | . . . Times Spotted 15 | . 7 8 Peak Tracking Total 8 | . 8 3 Tactical Retreats . | . . . Traps | -11 -10 -10 ------- Run | Yrd Mat Min Traps Triggered . | . . . Indirectly . | . . . Trap Hack Attempts . | . . . Triggered . | . . . Disarmed . | . . . Reprogrammed . | . . . Reused . | . . . Traps Extracted . | . . . Installed 2 | . . 2 Triggered . | . . . Most Traps Carried 4 | . . 4 Machines | -11 -10 -10 ---------- Run | Yrd Mat Min Machines Disabled . | . . . Max in Single Turn . | . . . Machines Repaired . | . . . Machines Dismantled . | . . . Machines Sabotaged . | . . . Overloaded Fab Kills . | . . . Hacking | -11 -10 -10 --------- Run | Yrd Mat Min Machines Accessed 4 | . 3 1 Terminals 2 | . 2 . Fabricators . | . . . Repair Stations . | . . . Recycling Units 1 | . 1 . Scanalyzers . | . . . Garrison Access . | . . . Total Hacks 6 | . 5 1 Successful 3 | . 2 1 Failed 3 | . 3 . Catastrophic . | . . . Database Lockouts . | . . . Manual 1 | . 1 . Terminals 4 | . 4 . Fabricators . | . . . Repair Stations . | . . . Recycling Units 1 | . 1 . Scanalyzers . | . . . Garrison Access . | . . . Terminal Hacks 2 | . 1 1 Open Door 1 | . . 1 Dispatch Records 1 | . 1 . Fabricator Hacks . | . . . Repair Station Hacks . | . . . Recycling Unit Hacks 1 | . 1 . Retrieve Components 1 | . 1 . Scanalyzer . | . . . Garrison Access Hacks . | . . . Unauthorized Hacks . | . . . Terminals . | . . . Fabricators . | . . . Repair Stations . | . . . Recycling Units . | . . . Scanalyzers . | . . . Garrison Access . | . . . Data Cores Recovered . | . . . Used . | . . . Hacking Detections 2 | . 2 . Full Trace Events . | . . . Feedback Events . | . . . Feedback Blocked . | . . . Robot Schematics Acquired . | . . . Robots Built . | . . . Authchips . | . . . Time . | . . . Total Robot Build Rating . | . . . Part Schematics Acquired . | . . . Parts Built . | . . . Authchips . | . . . Time . | . . . Total Part Build Rating . | . . . Part Studies Acquired . | . . . Parts Repaired . | . . . Time . | . . . Parts Recycled . | . . . Recycled Matter . | . . . Retrieved Matter . | . . . Retrieved Components 1 | . 1 . Parts Scanalyzed . | . . . Part Schematics Acquired . | . . . Parts Damaged . | . . . Bothacking | -11 -10 -10 ------------ Run | Yrd Mat Min Used RIF Installer . | . . . Robots Hacked . | . . . Non-combat . | . . . Combat . | . . . Robot Hacks Applied . | . . . Relay Couplers Released . | . . . Fabnet Peak Effective % . | . . . Robots Rewired . | . . . Allies Hacked . | . . . Hacks Repelled . | . . . Allies | -11 -10 -10 -------- Run | Yrd Mat Min Total Allies 3 | . . 3 Largest Group 3 | . . 3 Highest-Rated Group 40 | . . 40 Highest-Rated Ally 16 | . . 16 Total Orders . | . . . Ally Attacks 13 | . . 13 Total Damage 102 | . . 102 Kills 2 | . . 2 Allies Corrupted . | . . . Allies Melted . | . . . Intel | -11 -10 -10 ------- Run | Yrd Mat Min Active Infowar (turns) 82 | . . 82 Machine Analysis 82 | . . 82 Robot Analysis Total . | . . . Derelict Logs Recovered 1 | . . 1 Drone Launches . | . . . Drone Recoveries . | . . . Exploration | -11 -10 -10 ------------- Run | Yrd Mat Min Turns Passed 388 | 15 83 290 Spaces Moved 703 | 27 166 510 Core 118 | 27 49 42 Treads . | . . . Legs . | . . . Wheels . | . . . Hover . | . . . Flight 585 | . 117 468 Fastest Speed 37 | 50 40 37 Average Speed 40 | 50 42 39 Slowest Speed 150 | 50 50 150 Overloaded Moves . | . . . Propulsion Burnouts . | . . . Robots Hopped 2 | . 1 1 Potential Cave-ins . | . . . Cave-ins Triggered . | . . . Exploration Rate (%) 39 | 3 40 76 Regions Visited 2 Branch Regions 1 Pre-discovered Areas 1 | . . 1 Known Exits Taken . | . . . Unknown Exits Taken 2 | 1 1 . Scrap Searched 1 | . . 1 Spaces Dug . | . . . Terrain Destroyed . | . . . Melee . | . . . Projectile . | . . . AOE . | . . . Terrain Rammed . | . . . Walls Destroyed . | . . . Machines Disabled . | . . . Actions | -11 -10 -10 --------- Run | Yrd Mat Min Total 799 | 27 175 597 Wait 75 | . 10 65 Move 697 | 26 163 508 Hop 2 | . 1 1 Pick Up 8 | 1 . 7 Fast Attach 7 | . 1 6 Attach 3 | . . 3 Detach . | . . . Swap 1 | . . 1 Drop 4 | . . 4 Fire . | . . . Melee . | . . . Ram . | . . . Kick . | . . . Crush . | . . . Escape Stasis . | . . . Rewire . | . . . Trap 2 | . . 2 Miscellaneous . | . . . Route ------- -11/Scrapyard -10/Materials -10/Mines (discovered 1 exit: [*Mat]) History --------- Turn | Location | Event 2 | -11/Scrapyard | Met Revision 17 6 | -11/Scrapyard | Discovered new exit (range 16) 16 | -11/Scrapyard | Entered Materials 94 | -10/Materials | Discovered new exit (range 9) 99 | -10/Materials | Entered Mines 119 | -10/Mines | Core integrity fell below 50% 167 | -10/Mines | Met a Derelict bent on vengeance 199 | -10/Mines | Discovered new exit (range 7) 203 | -10/Mines | Assisted by bots powering up and referring to "LRC-V3" 274 | -10/Mines | Found a hidden stash of uninstalled traps 296 | -10/Mines | Assembled infested the area 296 | -10/Mines | Met a Derelict shopkeep closing up shop 296 | -10/Mines | Learned location of Storage (-7) 380 | -10/Mines | Lost 4 allies 387 | -10/Mines | Core integrity fell below 20% 389 | -10/Mines | Destroyed by D-53 Grenadier with Mini Grenade Launcher Last Messages --------------- 00335_ as-08180 destroyed. 00336_ U-05 Engineer lays Concrete. 00339_ T-07 Excavator is excavating. 00343_ Mercenary 1a suffers critical hit (Burn). 00343_ Mercenary 1a destroyed. 00344_ 48-4NR(g) system corrupted by crushing effect. 00344_ as-22520 destroyed. 00345_ 48-4NR(g) system terminally corrupted. 00347_ C-45 Heavy ARC bursts open, deploying its payload. 00347_ D-53 Grenadier unfolds itself. 00374_ Dropped Stasis Trap. 00374_ Installed Stasis Trap. 00378_ Dropped Stasis Trap. 00379_ Installed Stasis Trap. 00380_ Flight Unit destroyed. 00384_ Machine Analyzer destroyed. 00388_ The unstable cave ceiling collapses. 00389_ Lgt. Nuclear Core destroyed. Map ----- +----------------------------------------------------+ | ??????????????????####???#% #???????????? #?? | | ?????????????????## ##??#% #???????????? #?? | | ????????????????## #??# #???????????? #?? | | ??????????####### ## % ######### ### | | ??????????# " = | | ??????????# "% ########### #### | | ??????????# ###### ######??????##### #### | | ?????????????#### #???????????# | | ????????????## #???????????# ### #### | | ??????????### ##??????????# ??# ###? | | ??####?#### #??????????# ### ## | | ??#"]### #??????????# # | | ??#" !# ##??????????# # | | ??#"[ ##???????????## # | | ??#"! # ##?????????????#### | | ??#"]! #X # #?????????????????## | | ??#"!### # #?????????????????## | | ??####?### #????????????????## ## | | ????##???# ##???????????????## ### | | ????# #??## ## #???????????????## ### | | ????# #??### ### ####????????????# ## | | ????# #???## #?#d## ######????#### | | ?????# ##??# #?# # ###??# | | ??????# #### #?# #### ## | | ??????# ## #?# # ### # | | ???????# #?#d@ ####### # | | ???????## #?## ###### # | | ???????## ####??# ## | | ????#### ##????# ####? | | ???## ##???## # ###### ##???? | | ???# ##???####### ???####????? | | ???# % #?????????### ## #??????????? | | ???## ###% #???????????# #??#??????????? | | ????#####?# ####???????????# #?????????????? | | ??????????# #??????????????# ?????????????? | | ??????????# #?????????????? ?????????????? | | ???#####??#% #?????????????? ????????????? | | ??## ##?# #??????????????# ????????????? | | ??# ### #??????????????? ????????????? | | ??# #??????????????? ???????????? | | ??# #######???#####????##? #??????????? | | ??# ##????????# ?????? ? ##????????? | | ??## #????????# ??????? #????????? | | ???## #????????# #??????## """ ##???????? | | ???## #?#####??# #??????? """ ##??????? | | ??## #?# #??# #???????? """ ???????? | | ?## #### #### #????????? ???##### | | ?# ### # #??????????# ???## # | | ?# #???????????# #??## | | ?## < #???????????# #### | +----------------------------------------------------+ Best States ------------- Heat Dissipation 39 Energy Generation 14 Energy Capacity 160 Matter Stores 450 Matter Capacity 450 Sight Range 16 Terrain Scan Density 10 Evasion (%) 62 Item Schematics ----------------- None Robot Schematics ------------------ None Fabricated ------------ Nothing Repaired ---------- Nothing Studied --------- None Alien Tech Used ----------------- None Achievements -------------- None Challenges ------------ None Game ------ Seed MetamassCommShooter Manual? 0 Play Time 00:06:43 Cumulative 49.3 hours Start 2026.09.02 @ 11:41:20 End 2026.09.02 @ 13:36:15 Sessions 2 Manual Loads 0 Difficulty Rogue Special Mode None Game No. 128 Rogue 128 Adventurer 0 Explorer 0 Win Type - Total 3 Types 3/0/0/0/0/0/0/0/0/0 Lore% 46 Gallery% 39 Achievement% 42 Wizard Run 0 Options --------- Layout 2 ASCII 0 Keyboard 0 Movement Mouse Keybinds 0 Fullscreen 1 Font 16/SmallcapsGlow Map View 50x49 Zoom Use 0% Tactical HUD 1 Map Filters NONE Filters NONE Steam SD RUN: 7b843fe6-86df-41b0-a918-61aa806d9cbd